fUST/lending_fUST_20241226
["ID","MTS","AMOUNT","RATE_DAILY","PERIOD"]
[346705778,1735219849908,-500.0,0.00019652,2]
[346705779,1735219849917,-500.17033841,0.00019652,2]
[346705780,1735219849926,-500.0,0.00019652,2]
[346705781,1735219849936,-500.0,0.00019652,2]
[346705782,1735219849945,-500.0,0.00019652,2]
[346705783,1735219849956,-502.03253694,0.00019652,2]
[346705784,1735219849972,-500.0,0.00019652,2]
[346705785,1735219849981,-500.0,0.00019652,2]
[346705786,1735219849991,-500.0,0.00019652,2]
[346705787,1735219850000,-500.0,0.00019652,2]
[346705788,1735219850010,-500.0,0.00019652,2]
[346705789,1735219850019,-500.0,0.00019652,2]
[346705790,1735219850029,-500.0,0.00019652,2]
[346705791,1735219850038,-500.0,0.00019652,2]
[346705792,1735219850047,-500.96162884,0.00019652,2]
[346705793,1735219850056,-502.59022994,0.00019652,2]
[346705794,1735219850066,-502.18566448,0.00019652,2]
[346705795,1735219850075,-500.0,0.00019652,2]
[346705796,1735219850085,-500.0,0.00019652,2]
[346705797,1735219850094,-501.56419484,0.00019652,2]
[346705798,1735219850104,-500.0,0.00019652,2]
[346705799,1735219850113,-502.20437923,0.00019652,2]
[346705800,1735219850123,-500.0,0.00019652,2]
[346705801,1735219850132,-500.0,0.00019652,2]
[346705802,1735219850142,-502.47246897,0.00019652,2]
[346705803,1735219850152,-501.08690978,0.00019652,2]
[346705804,1735219850161,-500.0,0.00019652,2]
[346705805,1735219850170,-548.64805369,0.00019652,2]
[346705806,1735219850180,-500.0,0.00019652,2]
[346705807,1735219850189,-504.3951348,0.00019652,2]
[346705808,1735219850198,-500.0,0.00019652,2]
[346705809,1735219850208,-500.0,0.00019652,2]
[346705810,1735219850217,-502.22252115,0.00019652,2]
[346705811,1735219850227,-500.0,0.00019652,2]
[346705812,1735219850236,-500.0,0.00019652,2]
[346705813,1735219850246,-500.0,0.00019652,2]
[346705814,1735219850255,-501.80677034,0.00019653,2]
[346705815,1735219850264,-500.0,0.00019653,2]
[346705816,1735219850274,-151.0,0.000197,2]
[346705817,1735219850283,-151.0,0.000197,2]
[346705818,1735219850292,-151.0,0.000197,2]
[346705819,1735219850301,-500.0,0.00019743,2]
[346705820,1735219850310,-500.0,0.00019743,2]
[346705821,1735219850319,-500.0,0.00019743,2]
[346705822,1735219850329,-720.73,0.00019743,2]
[346705823,1735219850338,-500.0,0.00019743,2]
[346705824,1735219850347,-500.0,0.00019743,2]
[346705825,1735219850356,-500.0,0.00019743,2]
[346705826,1735219850366,-500.0,0.00019743,2]
[346705827,1735219850375,-500.0,0.00019743,2]
[346705828,1735219850385,-500.0,0.00019744,2]
[346705829,1735219850394,-500.0,0.00019744,2]
[346705830,1735219850404,-500.0,0.00019744,2]
[346705831,1735219850505,-500.0,0.00019744,2]
[346705832,1735219850515,-503.83873866,0.00019744,2]
[346705833,1735219850524,-500.0,0.00019744,2]
[346705834,1735219850533,-3574.46,0.00019744,2]
[346705835,1735219850543,-500.0,0.00019744,2]
[346705836,1735219850552,-500.0,0.00019744,2]
[346705837,1735219850561,-1412.0,0.00019744,2]
[346705838,1735219850571,-500.0,0.00019744,2]
[346705839,1735219850580,-500.0,0.00019744,2]
[346705840,1735219850589,-500.0,0.00019744,2]
[346705841,1735219850599,-1829.47,0.00019744,2]
[346705842,1735219850610,-826.82,0.00019744,2]
[346705843,1735219850619,-500.0,0.00019745,2]
[346705844,1735219850628,-500.0,0.00019745,2]
[346705845,1735219850637,-524.04,0.00019745,2]
[346705846,1735219850646,-500.0,0.00019745,2]
[346705847,1735219850655,-500.0,0.00019745,2]
[346705848,1735219850665,-500.0,0.00019745,2]
[346705849,1735219850674,-500.0,0.00019745,2]
[346705850,1735219850683,-500.0,0.00019745,2]
[346705851,1735219850693,-500.0,0.00019745,2]
[346705852,1735219850702,-500.0,0.00019745,2]
[346705853,1735219850712,-500.0,0.00019745,2]
[346705854,1735219850721,-500.0,0.00019745,2]
[346705855,1735219850731,-168.0,0.00019745,2]
[346705856,1735219850740,-500.0,0.00019745,2]
[346705857,1735219850749,-500.0,0.00019745,2]
[346705858,1735219850759,-500.0,0.00019745,2]
[346705859,1735219850768,-500.0,0.00019745,2]
[346705860,1735219850777,-553.52,0.00019745,2]
[346705861,1735219850786,-500.0,0.00019745,2]
[346705862,1735219850796,-500.0,0.00019745,2]
[346705863,1735219850805,-514.21,0.00019745,2]
[346705864,1735219850814,-598.73,0.00019745,2]
[346705865,1735219850823,-500.0,0.00019745,2]
[346705866,1735219850832,-500.0,0.00019745,2]
[346705867,1735219850842,-500.0,0.00019745,2]
[346705868,1735219850851,-500.0,0.00019745,2]
[346705869,1735219850860,-500.0,0.00019745,2]
[346705870,1735219850869,-500.0,0.00019745,2]
[346705871,1735219850878,-500.0,0.00019745,2]
[346705872,1735219850887,-500.0,0.00019745,2]
[346705873,1735219850896,-500.0,0.00019745,2]
[346705874,1735219850906,-625.99,0.00019745,2]
[346705875,1735219850915,-500.0,0.00019745,2]
[346705876,1735219850924,-500.0,0.00019745,2]
[346705877,1735219850934,-500.0,0.00019745,2]
[346705878,1735219850943,-500.0,0.00019745,2]
[346705879,1735219850952,-500.0,0.00019745,2]
[346705880,1735219850962,-500.0,0.00019745,2]
[346705881,1735219850972,-594.7,0.00019745,2]
[346705882,1735219850981,-500.0,0.00019745,2]
[346705883,1735219850990,-500.0,0.00019745,2]
[346705884,1735219850999,-613.96,0.00019745,2]
[346705885,1735219851008,-500.0,0.00019745,2]
[346705886,1735219851018,-501.23495038,0.00019745,2]
[346705887,1735219851027,-500.0,0.00019745,2]
[346705888,1735219851036,-500.0,0.00019745,2]
[346705889,1735219851047,-500.0,0.00019745,2]
[346705890,1735219851056,-500.0,0.00019745,2]
[346705891,1735219851065,-500.0,0.00019745,2]
[346705892,1735219851074,-500.0,0.00019745,2]
[346705893,1735219851083,-500.0,0.00019745,2]
[346705894,1735219851093,-500.0,0.00019745,2]
[346705895,1735219851102,-500.0,0.00019745,2]
[346705896,1735219851111,-500.0,0.00019745,2]
[346705897,1735219851121,-500.0,0.00019745,2]
[346705898,1735219851130,-500.0,0.00019745,2]
[346705899,1735219851139,-500.0,0.00019745,2]
[346705900,1735219851148,-500.0,0.00019745,2]
[346705901,1735219851158,-500.0,0.00019745,2]
[346705902,1735219851167,-500.0,0.00019745,2]
[346705903,1735219851176,-500.0,0.00019745,2]
[346705904,1735219851185,-575.57,0.00019746,2]
[346705905,1735219851195,-500.0,0.00019746,2]
[346705906,1735219851204,-500.0,0.00019746,2]
[346705907,1735219851214,-500.0,0.00019746,2]
[346705908,1735219851222,-643.54114901,0.00019746,2]
[346705909,1735219851232,-500.0,0.00019746,2]
[346705910,1735219851241,-500.0,0.00019746,2]
[346705911,1735219851250,-500.0,0.00019746,2]
[346705912,1735219851259,-500.0,0.00019746,2]
[346705913,1735219851268,-245.0017611,0.00019746,2]
[346705914,1735219851278,-500.0,0.00019746,2]
[346705915,1735219851287,-152.5,0.00019746,2]
[346705916,1735219851296,-500.0,0.00019746,2]
[346705917,1735219851306,-500.0,0.00019746,2]
[346705918,1735219851315,-500.0,0.00019746,2]
[346705919,1735219851325,-500.0,0.00019746,2]
[346705920,1735219851334,-500.0,0.00019746,2]
[346705921,1735219851343,-500.0,0.00019746,2]
[346705922,1735219851352,-500.0,0.00019746,2]
[346705923,1735219851362,-500.0,0.00019746,2]
[346705924,1735219851371,-500.0,0.00019746,2]
[346705925,1735219851381,-500.0,0.00019746,2]
[346705926,1735219851390,-12227.61,0.00019746,2]
[346705927,1735219851400,-500.0,0.00019746,2]
[346705928,1735219851411,-500.0,0.00019746,2]
[346705929,1735219851420,-500.0,0.00019746,2]
[346705930,1735219851430,-500.0,0.00019746,2]
[346705931,1735219851439,-500.0,0.00019746,2]
[346705932,1735219851449,-500.0,0.00019746,2]
[346705933,1735219851459,-2406.86,0.00019746,2]
[346705934,1735219851469,-500.0,0.00019746,2]
[346705935,1735219851478,-500.0,0.00019746,2]
[346705936,1735219851488,-500.0,0.00019746,2]
[346705937,1735219851497,-500.0,0.00019746,2]
[346705938,1735219851506,-500.0,0.00019746,2]
[346705939,1735219851516,-500.0,0.00019746,2]
[346705940,1735219851525,-500.0,0.00019746,2]
[346705941,1735219851534,-500.0,0.00019746,2]
[346705942,1735219851543,-500.0,0.00019747,2]
[346705943,1735219851552,-500.0,0.00019747,2]
[346705944,1735219851561,-500.0,0.00019747,2]
[346705945,1735219851570,-500.0,0.00019747,2]
[346705946,1735219851579,-500.0,0.00019747,2]
[346705947,1735219851588,-500.0,0.00019747,2]
[346705948,1735219851597,-500.0,0.00019747,2]
[346705949,1735219851606,-500.0,0.00019747,2]
[346705950,1735219851616,-500.0,0.00019747,2]
[346705951,1735219851625,-500.0,0.00019747,2]
[346705952,1735219851634,-627.6,0.00019747,2]
[346705953,1735219851644,-502.59139759,0.00019747,2]
[346705954,1735219851654,-500.0,0.00019747,2]
[346705955,1735219851663,-500.0,0.00019747,2]
[346705956,1735219851672,-500.0,0.00019747,2]
[346705957,1735219851681,-500.0,0.00019747,2]
[346705958,1735219851690,-500.0,0.00019747,2]
[346705959,1735219851699,-500.0,0.00019747,2]
[346705960,1735219851709,-500.0,0.00019747,2]
[346705961,1735219851718,-500.0,0.00019747,2]
[346705962,1735219851727,-500.0,0.00019747,2]
[346705963,1735219851737,-500.0,0.00019747,2]
[346705964,1735219851746,-615.83,0.00019747,2]
[346705965,1735219851755,-500.0,0.00019747,2]
[346705966,1735219851765,-500.0,0.00019747,2]
[346705967,1735219851774,-500.0,0.00019747,2]
[346705968,1735219851783,-500.0,0.00019747,2]
[346705969,1735219851793,-500.0,0.00019747,2]
[346705970,1735219851802,-500.0,0.00019747,2]
[346705971,1735219851811,-500.0,0.00019747,2]
[346705972,1735219851820,-500.0,0.00019747,2]
[346705973,1735219851830,-500.0,0.00019747,2]
[346705974,1735219851839,-500.0,0.00019747,2]
[346705975,1735219851848,-500.0,0.00019747,2]
[346705976,1735219851857,-500.0,0.00019747,2]
[346705977,1735219851867,-2077.63,0.00019747,2]
[346705978,1735219851876,-566.73597328,0.00019747,2]
[346705979,1735219851885,-500.0,0.00019747,2]
[346705980,1735219851895,-500.0,0.00019747,2]
[346705981,1735219851904,-500.0,0.00019747,2]
[346705982,1735219851913,-500.0,0.00019747,2]
[346705983,1735219851923,-500.0,0.00019747,2]
[346705984,1735219851933,-165.23572637,0.00019747,2]
[346705985,1735219851942,-619.75803405,0.00019764,2]
[346705986,1735219851951,-500.0,0.00019764,2]
[346705987,1735219851962,-500.0,0.00019764,2]
[346705988,1735219851971,-151.0,0.000198,2]
[346705989,1735219851980,-151.0,0.000198,2]
[346705990,1735219851989,-151.0,0.000198,2]
[346705991,1735219851999,-151.0,0.00019821,2]
[346705992,1735219852007,-151.0,0.000199,2]
[346705993,1735219852016,-151.0,0.000199,2]
[346705994,1735219852025,-151.0,0.000199,2]
[346705995,1735219852035,-500.0,0.00019926,2]
[346705996,1735219852045,-500.0,0.00019926,2]
[346705997,1735219852054,-500.0,0.00019926,2]
[346705998,1735219852064,-500.0,0.00019926,2]
[346705999,1735219852073,-500.0,0.00019926,2]
[346706000,1735219852082,-500.0,0.00019926,2]
[346706001,1735219852092,-500.0,0.00019926,2]
[346706002,1735219852101,-500.0,0.00019926,2]
[346706003,1735219852111,-500.0,0.00019926,2]
[346706004,1735219852120,-500.0,0.00019926,2]
[346706005,1735219852129,-500.0,0.00019926,2]
[346706006,1735219852139,-500.0,0.00019926,2]
[346706007,1735219852148,-500.0,0.00019926,2]
[346706008,1735219852158,-500.0,0.00019926,2]
[346706009,1735219852167,-500.0,0.00019926,2]
[346706010,1735219852176,-500.0,0.00019926,2]
[346706011,1735219852186,-500.0,0.00019926,2]
[346706012,1735219852195,-500.0,0.00019926,2]
[346706013,1735219852204,-500.0,0.00019926,2]
[346706014,1735219852214,-541.64033741,0.00019926,2]
[346706015,1735219852224,-500.0,0.00019926,2]
[346706016,1735219852233,-501.62592743,0.00019926,2]
[346706017,1735219852242,-500.0,0.00019926,2]
[346706018,1735219852251,-500.0,0.00019926,2]
[346706019,1735219852260,-500.0,0.00019926,2]
[346706020,1735219852269,-500.0,0.00019926,2]
[346706021,1735219852279,-504.4290672,0.00019926,2]
[346706022,1735219852288,-500.0,0.00019926,2]
[346706023,1735219852297,-500.0,0.00019926,2]
[346706024,1735219852307,-500.0,0.00019926,2]
[346706025,1735219852316,-500.0,0.00019926,2]
[346706026,1735219852325,-500.0,0.00019926,2]
[346706027,1735219852335,-500.0,0.00019926,2]
[346706028,1735219852343,-500.0,0.00019926,2]
[346706029,1735219852353,-500.0,0.00019926,2]
[346706030,1735219852362,-500.0,0.00019926,2]
[346706031,1735219852371,-505.16554897,0.00019926,2]
[346706032,1735219852379,-211.0,0.0001995,2]
[346706033,1735219852388,-705.0606,0.0002,2]
[346706034,1735219852398,-151.0,0.0002,3]
[346706035,1735219852486,-151.0,0.0002,4]
[346706036,1735219852496,-151.0,0.0002,4]
[346706037,1735219852505,-353.13350562,0.0002,2]
[346706038,1735219852514,-500.0,0.00020017,2]
[346706039,1735219852523,-500.0,0.00020017,2]
[346706040,1735219852532,-500.0,0.00020017,2]
[346706041,1735219852541,-720.73,0.00020017,2]
[346706042,1735219852550,-500.0,0.00020017,2]
[346706043,1735219852559,-500.0,0.00020017,2]
[346706044,1735219852569,-500.0,0.00020017,2]
[346706045,1735219852578,-500.0,0.00020017,2]
[346706046,1735219852587,-500.0,0.00020017,2]
[346706047,1735219852596,-500.0,0.00020018,2]
[346706048,1735219852606,-500.0,0.00020018,2]
[346706049,1735219852615,-500.0,0.00020018,2]
[346706050,1735219852624,-500.0,0.00020018,2]
[346706051,1735219852633,-500.0,0.00020018,2]
[346706052,1735219852642,-3574.46,0.00020018,2]
[346706053,1735219852651,-500.0,0.00020018,2]
[346706054,1735219852660,-500.0,0.00020018,2]
[346706055,1735219852670,-1412.0,0.00020018,2]
[346706056,1735219852679,-500.0,0.00020018,2]
[346706057,1735219852689,-500.0,0.00020018,2]
[346706058,1735219852698,-1829.47,0.00020018,2]
[346706059,1735219852708,-826.82,0.00020018,2]
[346706060,1735219852717,-500.0,0.00020019,2]
[346706061,1735219852727,-320.7446022,0.00020019,2]
[346706062,1735219852736,-500.0,0.00020019,2]
[346706063,1735219852746,-500.0,0.00020019,2]
[346706064,1735219852755,-418.35050593,0.00020019,2]
[346706065,1735219852764,-500.0,0.00020019,2]
[346706066,1735219852773,-500.0,0.00020019,2]
[346706067,1735219852782,-500.0,0.00020019,2]
[346706068,1735219852792,-221.38,0.00020019,2]
[346706069,1735219852801,-500.0,0.00020019,2]
[346706070,1735219852810,-500.0,0.00020019,2]
[346706071,1735219852819,-553.52,0.00020019,2]
[346706072,1735219852828,-500.0,0.00020019,2]
[346706073,1735219852837,-500.0,0.00020019,2]
[346706074,1735219852846,-514.21,0.00020019,2]
[346706075,1735219852855,-500.0,0.00020019,2]
[346706076,1735219852864,-500.0,0.00020019,2]
[346706077,1735219852874,-163.44,0.00020019,2]
[346706078,1735219852883,-282.11,0.00020019,2]
[346706079,1735219852892,-500.0,0.00020019,2]
[346706080,1735219852901,-500.0,0.00020019,2]
[346706081,1735219852910,-500.0,0.00020019,2]
[346706082,1735219852919,-625.99,0.00020019,2]
[346706083,1735219852928,-500.0,0.00020019,2]
[346706084,1735219852938,-282.28368011,0.00020019,2]
[346706085,1735219852947,-500.0,0.00020019,2]
[346706086,1735219852959,-624.44,0.00020019,2]
[346706087,1735219852970,-500.0,0.00020019,2]
[346706088,1735219852984,-500.0,0.00020019,2]
[346706089,1735219852997,-500.0,0.00020019,2]
[346706090,1735219853006,-500.0,0.00020019,2]
[346706091,1735219853015,-500.0,0.00020019,2]
[346706092,1735219853024,-500.0,0.00020019,2]
[346706093,1735219853034,-500.0,0.00020019,2]
[346706094,1735219853043,-500.0,0.00020019,2]
[346706095,1735219853052,-500.0,0.00020019,2]
[346706096,1735219853062,-500.0,0.00020019,2]
[346706097,1735219853071,-500.0,0.00020019,2]
[346706098,1735219853080,-500.0,0.00020019,2]
[346706099,1735219853090,-645.76,0.00020019,2]
[346706100,1735219853099,-500.0,0.00020019,2]
[346706101,1735219853109,-157.98,0.00020019,2]
[346706102,1735219853118,-500.0,0.00020019,2]
[346706103,1735219853128,-500.0,0.00020019,2]
[346706104,1735219853137,-500.0,0.00020019,2]
[346706105,1735219853146,-500.0,0.00020019,2]
[346706106,1735219853155,-500.0,0.00020019,2]
[346706107,1735219853164,-500.0,0.0002002,2]
[346706108,1735219853174,-203.76,0.0002002,2]
[346706109,1735219853183,-625.87,0.0002002,2]
[346706110,1735219853192,-500.0,0.0002002,2]
[346706111,1735219853201,-500.0,0.0002002,2]
[346706112,1735219853212,-500.0,0.0002002,2]
[346706113,1735219853222,-500.0,0.0002002,2]
[346706114,1735219853230,-500.0,0.0002002,2]
[346706115,1735219853240,-500.0,0.0002002,2]
[346706116,1735219853249,-500.0,0.0002002,2]
[346706117,1735219853258,-500.0,0.0002002,2]
[346706118,1735219853267,-500.0,0.0002002,2]
[346706119,1735219853276,-12227.61,0.0002002,2]
[346706120,1735219853285,-500.0,0.0002002,2]
[346706121,1735219853294,-302.16,0.0002002,2]
[346706122,1735219853303,-2406.86,0.0002002,2]
[346706123,1735219853312,-500.0,0.0002002,2]
[346706124,1735219853321,-292.67,0.0002002,2]
[346706125,1735219853331,-219.83,0.0002002,2]
[346706126,1735219853340,-500.0,0.00020021,2]
[346706127,1735219853349,-500.0,0.00020021,2]
[346706128,1735219853358,-500.0,0.00020021,2]
[346706129,1735219853368,-500.0,0.00020021,2]
[346706130,1735219853377,-500.0,0.00020021,2]
[346706131,1735219853386,-542.02,0.00020021,2]
[346706132,1735219853395,-500.0,0.00020021,2]
[346706133,1735219853404,-500.0,0.00020021,2]
[346706134,1735219853417,-500.0,0.00020021,2]
[346706135,1735219853426,-500.0,0.00020021,2]
[346706136,1735219853435,-500.0,0.00020021,2]
[346706137,1735219853445,-500.0,0.00020021,2]
[346706138,1735219853457,-500.0,0.00020021,2]
[346706139,1735219853468,-500.0,0.00020021,2]
[346706140,1735219853488,-500.0,0.00020021,2]
[346706141,1735219853498,-500.0,0.00020021,2]
[346706142,1735219853508,-500.0,0.00020021,2]
[346706143,1735219853517,-500.0,0.00020021,2]
[346706144,1735219853526,-500.0,0.00020021,2]
[346706145,1735219853536,-500.0,0.00020021,2]
[346706146,1735219853544,-361.48,0.00020021,2]
[346706147,1735219853554,-436.88,0.00020021,2]
[346706148,1735219853563,-500.0,0.00020021,2]
[346706149,1735219853573,-568.2,0.00020021,2]
[346706150,1735219853583,-334.04517833,0.00020021,2]
[346706151,1735219853592,-500.0,0.00020021,2]
[346706152,1735219853601,-2077.63,0.00020021,2]
[346706153,1735219853610,-340.96,0.00020021,2]
[346706154,1735219853619,-308.04,0.00020021,2]
[346706155,1735219853628,-500.0,0.00020021,2]
[346706156,1735219853637,-500.0,0.00020021,2]
[346706157,1735219853647,-151.0,0.000201,3]
[346706158,1735219853656,-151.0,0.000201,3]
[346706159,1735219853665,-151.0,0.000201,3]
[346706160,1735219853674,-8918.10171817,0.00020117,2]
[346706161,1735219853683,-161.3704992,0.00020128,2]
[346706162,1735219853693,-151.36378773,0.00020143,2]
[346706163,1735219853702,-500.0,0.000202,2]
[346706164,1735219853712,-238.84,0.000202,2]
[346706165,1735219853720,-151.0,0.000202,4]
[346706166,1735219853730,-278.99494344,0.000202,2]
[346706167,1735219853739,-500.0,0.000202,2]
[346706168,1735219853748,-500.0,0.000202,2]
[346706169,1735219853757,-500.0,0.000202,2]
[346706170,1735219853766,-597.98,0.000202,2]
[346706171,1735219853775,-547.79,0.000202,2]
[346706172,1735219853784,-501.85447821,0.000202,2]
[346706173,1735219853793,-500.0,0.000202,2]
[346706174,1735219853802,-500.0,0.000202,2]
[346706175,1735219853811,-247.18781819,0.000202,2]
[346706176,1735219853821,-500.0,0.000202,2]
[346706177,1735219853830,-500.0,0.000202,2]
[346706178,1735219853839,-500.0,0.000202,2]
[346706179,1735219853848,-537.08,0.000202,2]
[346706180,1735219853858,-260.70562565,0.000202,2]
[346706181,1735219853867,-500.0,0.000202,2]
[346706182,1735219853876,-417.4,0.000202,2]
[346706183,1735219853885,-500.0,0.000202,2]
[346706184,1735219853894,-500.0,0.000202,2]
[346706185,1735219853903,-500.0,0.000202,2]
[346706186,1735219853913,-508.4476205,0.000202,2]
[346706187,1735219853921,-500.0,0.000202,2]
[346706188,1735219853930,-500.0,0.000202,2]
[346706189,1735219853939,-500.0,0.000202,2]
[346706190,1735219853948,-666.0,0.00020232,2]
[346706191,1735219853958,-499.0,0.00020273,2]
[346706192,1735219853966,-500.0,0.00020291,2]
[346706193,1735219853976,-500.0,0.00020291,2]
[346706194,1735219853986,-720.73,0.00020291,2]
[346706195,1735219853995,-475.64,0.00020291,2]
[346706196,1735219854004,-500.0,0.00020291,2]
[346706197,1735219854014,-384.47378399,0.00020291,2]
[346706198,1735219854023,-500.0,0.00020291,2]
[346706199,1735219854032,-500.0,0.00020291,2]
[346706200,1735219854042,-500.0,0.00020292,2]
[346706201,1735219854051,-500.0,0.00020292,2]
[346706202,1735219854060,-500.0,0.00020292,2]
[346706203,1735219854070,-500.0,0.00020292,2]
[346706204,1735219854079,-162.81,0.00020292,2]
[346706205,1735219854088,-3574.46,0.00020292,2]
[346706206,1735219854097,-500.0,0.00020292,2]
[346706207,1735219854106,-1412.0,0.00020292,2]
[346706208,1735219854115,-344.02,0.00020292,2]
[346706209,1735219854124,-222.86,0.00020292,2]
[346706210,1735219854133,-1829.47,0.00020292,2]
[346706211,1735219854143,-826.82,0.00020292,2]
[346706212,1735219854152,-500.0,0.00020293,2]
[346706213,1735219854161,-220.26,0.00020293,2]
[346706214,1735219854170,-500.0,0.00020293,2]
[346706215,1735219854179,-500.0,0.00020293,2]
[346706216,1735219854188,-382.05,0.00020293,2]
[346706217,1735219854197,-500.0,0.00020293,2]
[346706218,1735219854206,-500.0,0.00020293,2]
[346706219,1735219854216,-500.0,0.00020293,2]
[346706220,1735219854225,-553.52,0.00020293,2]
[346706221,1735219854235,-500.0,0.00020293,2]
[346706222,1735219854245,-500.0,0.00020293,2]
[346706223,1735219854331,-514.21,0.00020293,2]
[346706224,1735219854340,-500.0,0.00020293,2]
[346706225,1735219854349,-500.0,0.00020293,2]
[346706226,1735219854358,-500.0,0.00020293,2]
[346706227,1735219854368,-500.0,0.00020293,2]
[346706228,1735219854377,-625.99,0.00020293,2]
[346706229,1735219854386,-500.0,0.00020293,2]
[346706230,1735219854396,-500.0,0.00020293,2]
[346706231,1735219854406,-500.0,0.00020293,2]
[346706232,1735219854418,-500.0,0.00020293,2]
[346706233,1735219854427,-485.4,0.00020293,2]
[346706234,1735219854437,-500.0,0.00020293,2]
[346706235,1735219854446,-203.63,0.00020293,2]
[346706236,1735219854458,-500.0,0.00020293,2]
[346706237,1735219854467,-508.92,0.00020293,2]
[346706238,1735219854478,-500.0,0.00020293,2]
[346706239,1735219854488,-500.0,0.00020293,2]
[346706240,1735219854503,-500.0,0.00020293,2]
[346706241,1735219854513,-618.43,0.00020293,2]
[346706242,1735219854523,-500.0,0.00020293,2]
[346706243,1735219854532,-500.0,0.00020293,2]
[346706244,1735219854542,-500.0,0.00020293,2]
[346706245,1735219854551,-500.0,0.00020293,2]
[346706246,1735219854560,-500.0,0.00020293,2]
[346706247,1735219854569,-500.0,0.00020294,2]
[346706248,1735219854579,-289.51,0.00020294,2]
[346706249,1735219854589,-500.0,0.00020294,2]
[346706250,1735219854598,-500.0,0.00020294,2]
[346706251,1735219854607,-500.0,0.00020294,2]
[346706252,1735219854616,-500.0,0.00020294,2]
[346706253,1735219854627,-12227.61,0.00020294,2]
[346706254,1735219854636,-500.0,0.00020294,2]
[346706255,1735219854645,-2406.86,0.00020294,2]
[346706256,1735219854654,-500.0,0.00020294,2]
[346706257,1735219854663,-500.0,0.00020295,2]
[346706258,1735219854672,-500.0,0.00020295,2]
[346706259,1735219854681,-535.14,0.00020295,2]
[346706260,1735219854691,-458.39,0.00020295,2]
[346706261,1735219854700,-295.84,0.00020295,2]
[346706262,1735219854710,-398.63,0.00020295,2]
[346706263,1735219854719,-500.0,0.00020295,2]
[346706264,1735219854728,-500.0,0.00020295,2]
[346706265,1735219854738,-235.54,0.00020295,2]
[346706266,1735219854747,-500.0,0.00020295,2]
[346706267,1735219854756,-500.0,0.00020295,2]
[346706268,1735219854766,-500.0,0.00020295,2]
[346706269,1735219854775,-500.0,0.00020295,2]
[346706270,1735219854785,-500.0,0.00020295,2]
[346706271,1735219854794,-500.0,0.00020295,2]
[346706272,1735219854803,-408.47,0.00020295,2]
[346706273,1735219854812,-500.0,0.00020295,2]
[346706274,1735219854821,-2077.63,0.00020295,2]
[346706275,1735219854830,-500.0,0.00020295,2]
[346706276,1735219854840,-500.0,0.00020295,2]
[346706277,1735219854849,-151.0,0.000203,3]